Cogmind - Beta 11.1 --- EXPLORER MODE // 2022.05.09 @ 17:15:14 Player: Haldron Result: Self-destructed Performance ------------- Evolutions (3) 1500 Regions Visited (9) 1800 Robots Destroyed (113) 565 Value Destroyed (4018) 4018 Prototype IDs (3) 60 Alien Tech Used (0) 0 Bonus (2569) 2569 TOTAL SCORE: 10512 Bonus ------- High Alert Combat Kills 337 Follower Combat Kills 548 Entered Garrisons 400 Used RIF Installer 1000 Aligned with FarCom 300 Friendly Fire -16 Cogmind --------- Core Integrity 654/700 Matter 300/300 Energy 240/240 System Corruption 1% Temperature Cool (0) Movement Walking (90) Location -7/Factory Parts ------- > --- POWER (1) -------- Nuclear Core > --- PROPULSION (2) --- Potential Leg Potential Leg > --- UTILITY (8) ------ Large Storage Unit Structural Scanner Terrain Scanner Improved Terrain Scan Processor Advanced Terrain Scan Processor System Shield Relay Coupler [NC] (28) Relay Coupler [Sentry] (14) > --- WEAPON (3) ------- Improved Datajack Greatsword > --- INVENTORY (15) --- Titanium Leg Improved Titanium Leg Hardened Medium Armor Plating Relay Coupler [NC] (32) Relay Coupler [NC] (38) Relay Coupler [Sentry] (25) Decoy Drone Bay (15/16) Heavy Flak Cannon Heavy Flak Cannon Missile Launcher Remote Datajack Chainsword Peak State ------------ > --- POWER ------------ Nuclear Core > --- PROPULSION ------- Potential Leg Potential Leg > --- UTILITY ---------- Advanced Heat Sink Large Storage Unit Structural Scanner Terrain Scanner Improved Terrain Scan Processor Advanced Terrain Scan Processor Relay Coupler [NC] Relay Coupler [Sentry] > --- WEAPON ----------- Heavy Flak Cannon Improved Datajack Chainsword > --- INVENTORY -------- Titanium Leg Improved Titanium Leg Hardened Medium Armor Plating System Shield Relay Coupler [NC] Relay Coupler [NC] Relay Coupler [Sentry] Decoy Drone Bay Heavy Laser Enhanced Autogun Heavy Flak Cannon Missile Launcher Remote Datajack Chainsword [Rating: 60] Favorites ----------- Power Nuclear Core Engine Ion Engine Power Core Nuclear Core Propulsion Potential Leg Leg Potential Leg Utility Large Storage Unit Device Structural Scanner Storage Large Storage Unit Processor Terrain Scan Processor Hackware Relay Coupler [Sentry] Protection Hardened Medium Armor Plating Weapon Assault Rifle Energy Gun Particle Gun Ballistic Gun Assault Rifle Ballistic Cannon Heavy Flak Cannon Launcher Grenade Launcher Special Weapon Remote Datajack Impact Weapon Maul Slashing Weapon Katana Special Melee Weapon Improved Datajack Build | -11 -10 -10 -10 -9 -8 -8 -7 -7 -7 ------- Run | Scr Mat Min Exi Min Mat Gar Fac Gar Fac Slots Evolved 7 | . 1 . . . 4 . 2 . . Power . | . . . . . . . . . . Propulsion . | . . . . . . . . . . Utility 6 | . 1 . . . 3 . 2 . . Weapon 1 | . . . . . 1 . . . . Parts Attached 98 | 8 4 10 2 3 26 21 2 8 14 Power 6 | 2 . 1 . . 2 . . . 1 Engine 4 | 2 . 1 . . 1 . . . . Core 2 | . . . . . 1 . . . 1 Reactor . | . . . . . . . . . . Propulsion 5 | 2 . 1 2 . . . . . . Treads . | . . . . . . . . . . Leg 5 | 2 . 1 2 . . . . . . Wheel . | . . . . . . . . . . Hover . | . . . . . . . . . . Flight . | . . . . . . . . . . Utility 37 | 2 2 4 . 2 11 5 2 4 5 Device 16 | . 1 2 . 1 7 2 1 . 2 Storage 3 | 1 1 . . . 1 . . . . Processor 4 | 1 . 1 . . . . 1 . 1 Hackware 8 | . . . . . . 3 . 4 1 Protection 6 | . . 1 . 1 3 . . . 1 Artifact . | . . . . . . . . . . Weapon 50 | 2 2 4 . 1 13 16 . 4 8 Energy Gun 3 | . . . . . 3 . . . . Energy Cannon . | . . . . . . . . . . Ballistic Gun 22 | 2 2 3 . . 5 8 . 1 1 Ballistic Cannon 5 | . . . . . 2 1 . 1 1 Launcher 4 | . . . . 1 1 2 . . . Special Weapon 1 | . . . . . . . . . 1 Impact Weapon 3 | . . 1 . . 1 1 . . . Slashing Weapon 7 | . . . . . . 3 . 2 2 Piercing Weapon . | . . . . . . . . . . Special Melee Weapon 5 | . . . . . 1 1 . . 3 Unidentified Prototypes 3 | . . . 1 . 2 . . . . Parts Lost 4 | . . . . . 2 1 . 1 . Power . | . . . . . . . . . . Propulsion . | . . . . . . . . . . Utility 3 | . . . . . 1 1 . 1 . Weapon 1 | . . . . . 1 . . . . Highest Loss Streak 2 | . . . . . 2 1 . 1 . To Critical Strikes . | . . . . . . . . . . Average Slot Usage (%) 97 | . 100 100 100 100 96 94 91 98 96 Engine 5 | . 12 12 12 12 5 . . . . Core 3 | . . . . . 2 8 7 7 7 Leg 18 | . 25 25 25 25 16 16 14 14 14 Device 15 | . 12 8 12 10 22 18 15 21 17 Storage 9 | . 12 12 12 12 8 8 7 7 7 Processor 11 | . 12 12 12 12 8 8 11 14 14 Hackware 5 | . . . . . . 1 7 11 17 Protection 3 | . . 3 . 1 7 8 7 . . Energy Gun 1 | . . . . . 7 . . . . Ballistic Gun 15 | . 25 24 25 21 12 17 14 13 3 Slashing Weapon 2 | . . . . . . 2 . 2 7 Special Melee Weapon 2 | . . . . . . 1 7 4 6 Naked Turns . | . . . . . . . . . . Heaviest Build 60 | 17 30 36 30 37 60 51 45 45 42 Greatest Support 60 | 20 20 20 60 60 60 60 60 60 60 Greatest Overweight (x) 3 | 3 1 1 1 . . . . . . Average Overweight (x) . | . . 1 . . . . . . . Largest Inventory Capacity 15 | 10 15 15 15 15 15 15 15 15 15 Average Capacity 14 | 9 12 15 15 15 15 15 15 15 15 Most Carried 15 | 6 12 15 15 15 15 15 15 15 15 Average Carried 13 | 3 9 14 15 15 14 14 15 15 14 Final Capacity 15 | 10 15 15 15 15 15 15 15 15 15 Final Carried 15 | 6 12 15 15 15 15 15 15 15 13 Class Distribution -------------------- 35% | Hacker-Mutant 23% | Hacker-Skirmisher 15% | Bothacker-Assassin 15% | Commander-Assassin 5% | Hacker-Assassin 4% | Bothacker-Mutant Dominant Class ---------------- Hacker-Mutant | -10/Materials Hacker-Mutant | -10/Mines Hacker-Mutant | -10/Exiles Hacker-Skirmisher | -9/Mines Hacker-Skirmisher | -8/Materials Hacker-Skirmisher | -8/Garrison Bothacker-Mutant | -7/Factory Bothacker-Assassin | -7/Garrison Commander-Assassin | -7/Factory Resources | -11 -10 -10 -10 -9 -8 -8 -7 -7 -7 ----------- Run | Scr Mat Min Exi Min Mat Gar Fac Gar Fac Matter Collected 3294 | 302 394 352 . 36 907 767 133 194 209 Remotely . | . . . . . . . . . . Salvage Created 3771 | 182 456 549 . 45 950 859 159 242 329 Parts 240 | 14 29 52 . . 45 51 12 13 24 Haulers Intercepted 3 | . 2 . . . 1 . . . . Recyclers Shooed 2 | 1 . . . . 1 . . . . Parts Field Recycled . | . . . . . . . . . . Retrieved Matter . | . . . . . . . . . . Parts Self-Destructed . | . . . . . . . . . . Prevented . | . . . . . . . . . . Kills | -11 -10 -10 -10 -9 -8 -8 -7 -7 -7 ------- Run | Scr Mat Min Exi Min Mat Gar Fac Gar Fac Combat Hostiles Destroyed 78 | . 7 8 . 5 16 29 1 7 5 Melee 7 | . . . . . . 3 . . 4 Guns 57 | . 7 8 . 3 14 18 1 6 . Cannons 5 | . . . . . 2 1 . 1 1 AOE 9 | . . . . 2 . 7 . . . Classes Destroyed 16 | 3 4 1 . 1 2 3 . 1 1 Worker 10 | 1 2 4 . . . . . . 3 Builder 8 | . . 4 . . . . 3 . 1 Tunneler 5 | 3 . 2 . . . . . . . Hauler 3 | . 2 . . . 1 . . . . Recycler 4 | 1 1 . . . 2 . . . . Operator 1 | . . . . . 1 . . . . Watcher 9 | . 3 . . . 3 . 1 . 2 Swarmer 22 | . 4 . . . 2 11 . 5 . Grunt 33 | . 3 8 . . 8 10 1 1 2 Brawler 2 | . . . . . . 2 . . . Duelist 2 | . . . . . . 2 . . . Sentry 7 | . . . . . 6 1 . . . Specialist 1 | . . . . . . . . 1 . Hunter 4 | . . . . . . 3 . . 1 Programmer 2 | . . . . . . . . . 2 Assembled 5 | . . . . 5 . . . . . Best Kill Streak 6 | 4 6 3 . 2 4 6 3 2 2 Combat Bots Only 6 | . 4 2 . 2 2 6 1 2 1 Max Kills in Single Turn 3 | 1 1 2 . 1 2 3 1 1 1 Gunslinging 1 | . . 1 . . 1 1 . . . Exploded 3 | . . . . 1 . 3 . . . Melee 1 | . . . . . . 1 . . 1 Uniques/NPCs Destroyed . | . . . . . . . . . . Combat | -11 -10 -10 -10 -9 -8 -8 -7 -7 -7 -------- Run | Scr Mat Min Exi Min Mat Gar Fac Gar Fac Damage Taken 1769 | . 135 309 . 139 409 493 9 176 99 Core 336 | . 30 69 . 38 93 60 . 25 21 Absorbed by Shields 10 | . . . . . . 10 . . . Regen/Repaired (Parts) 151 | . . . . . . . . . 151 Core Remaining (%) 72 | 100 . . . 45 . 72 . . . Volleys Fired 239 | 11 40 36 . 15 58 49 8 14 8 Largest 3 | 2 2 2 . 2 3 3 2 3 1 Hottest 124 | 40 40 40 . 40 124 76 48 101 53 Shots Fired 533 | 22 80 72 . 20 157 128 16 29 9 Gun 496 | 22 80 72 . 12 147 116 16 28 3 Cannon 22 | . . . . . 10 5 . 1 6 Launcher 15 | . . . . 8 . 7 . . . Special . | . . . . . . . . . . Kinetic 460 | 22 80 72 . 12 99 121 16 29 9 Thermal 58 | . . . . . 58 . . . . Explosive 15 | . . . . 8 . 7 . . . Electromagnetic . | . . . . . . . . . . Robot Hit Streak 43 | 8 22 27 . 6 43 33 6 12 11 Robot Miss Streak 2 | 1 2 1 . 1 2 2 1 2 2 Penetration Max . | . . . . . . . . . . Secondary Targets 8 | . . 2 . . 2 3 1 . . Max Gunslinging Chain 1 | . . 1 . . 1 1 1 . . Shots Hit Robots 448 | 17 58 58 . 11 135 109 11 26 23 Core Hits 205 | 9 24 27 . 11 45 53 8 15 13 Critical Kills 1 | . . . . . . 1 . . . Critical Parts Destroyed 3 | . 1 . . . . 1 1 . . Critical Strikes 8 | . 1 . . . 4 2 1 . . Burn 4 | . . . . . 4 . . . . Destroy 4 | . 1 . . . . 2 1 . . Melee Attacks 77 | . . 2 . . 3 27 1 8 36 Impact 7 | . . 2 . . 3 2 . . . Slashing 50 | . . . . . . 18 . 2 30 Piercing . | . . . . . . . . . . Sneak Attacks 14 | . . . . . 1 5 1 . 7 Combat Hostiles . | . . . . . . . . . . Follow-up Attacks . | . . . . . . . . . . Damage Inflicted 7898 | 135 702 759 . 234 2114 2489 150 329 986 Guns 5657 | 135 647 759 . 131 1867 1639 150 313 16 Cannons 433 | . . . . . 158 123 . 16 136 Explosions 623 | . 55 . . 103 . 465 . . . Melee 1185 | . . . . . 89 262 . . 834 Ramming . | . . . . . . . . . . Kinetic 5323 | 135 647 759 . 131 1258 1762 150 329 152 Thermal 822 | . 55 . . . 767 . . . . Explosive 568 | . . . . 103 . 465 . . . Electromagnetic . | . . . . . . . . . . Impact 89 | . . . . . 89 . . . . Slashing 1096 | . . . . . . 262 . . 834 Piercing . | . . . . . . . . . . Highest Corruption 3 | . . . . . 1 3 . . 1 Average Corruption 1 | . . . . . 1 2 . . 1 Corruption Purged . | . . . . . . . . . . Corruption Blocked . | . . . . . . . . . . Effects 35 | . . . . . 6 21 . . 8 Message Errors 10 | . . . . . 1 7 . . 2 Matter Fused 7 | . . . . . . 5 . . 2 Heat Flow Errors 4 | . . . . . 2 1 . . 1 Energy Discharges 4 | . . . . . . 4 . . . Data Loss (minor) 5 | . . . . . 3 1 . . 1 Data Loss (major) 1 | . . . . . . . . . 1 Misfires 3 | . . . . . . 2 . . 1 Weapon Failures 1 | . . . . . . 1 . . . Overload Shots . | . . . . . . . . . . Overflow Damage 263 | . . . . . 79 . . . 184 Projectiles . | . . . . . . . . . . Explosions . | . . . . . . . . . . Melee 263 | . . . . . 79 . . . 184 Knockbacks 5 | . . . . . . 2 . . 3 Impact . | . . . . . . . . . . Kinetic 4 | . . . . . . 1 . . 3 Secondary 1 | . . . . . . 1 . . . Self-Inflicted Damage 28 | . 18 . . . . 10 . . . Shots 2 | . 1 . . . . 1 . . . Rammed . | . . . . . . . . . . Targets Rammed 1 | . . 1 . . . . . . . Kicked 1 | . . 1 . . . . . . . Crushed . | . . . . . . . . . . Highest Temperature 316 | . 5 67 . 13 316 153 . 8 234 Average Temperature 57 | . 2 24 . 10 70 25 . 6 124 Received Heat Transfer 1059 | . 66 318 . . 315 297 9 27 27 Siege Activations . | . . . . . . . . . . Robots Corrupted . | . . . . . . . . . . Combat Hostiles . | . . . . . . . . . . Parts Fried 1 | . . . . . 1 . . . . Impact Corruptions 4 | . . . . . 4 . . . . Robots Melted . | . . . . . . . . . . Combat Hostiles . | . . . . . . . . . . Parts Melted 8 | . . . . . 7 . . 1 . Heat Transferred 2246 | . 100 . . . 2146 . . . . Parts Sabotaged . | . . . . . . . . . . Parts Stolen . | . . . . . . . . . . Parts Stripped . | . . . . . . . . . . Power Chain Reactions . | . . . . . . . . . . Missiles Intercepted . | . . . . . . . . . . Alert | -11 -10 -10 -10 -9 -8 -8 -7 -7 -7 ------- Run | Scr Mat Min Exi Min Mat Gar Fac Gar Fac Peak Influence 1150 | 25 223 121 . 78 221 1150 697 802 329 Initial 448 | . 12 . . . 21 78 448 376 312 Average 244 | 8 69 36 . 11 75 734 496 671 103 Maximum Alert Level 4 | . 1 . . . 1 4 2 3 1 Low Security (%) 66 | 100 85 100 . 100 97 10 . . 82 Level 1 8 | . 14 . . . 2 8 . 6 17 Level 2 11 | . . . . . . 24 100 46 . Level 3 9 | . . . . . . 37 . 46 . Level 4 3 | . . . . . . 20 . . . Level 5 . | . . . . . . . . . . High Security . | . . . . . . . . . . Max Security . | . . . . . . . . . . Squads Dispatched 13 | . 1 . . . 5 . 1 . 6 Investigation 5 | . 1 . . . 3 . . . 1 Extermination 4 | . . . . . . . . . 4 Reinforcement 3 | . . . . . 2 . . . 1 Assault . | . . . . . . . . . . Garrison 1 | . . . . . . . 1 . . Intercept . | . . . . . . . . . . Searches Triggered . | . . . . . . . . . . Construction Impeded . | . . . . . . . . . . Haulers Reinforced . | . . . . . . . . . . Active Scanning Responses . | . . . . . . . . . . Cargo Convoy Interrupts . | . . . . . . . . . . Stealth | -11 -10 -10 -10 -9 -8 -8 -7 -7 -7 --------- Run | Scr Mat Min Exi Min Mat Gar Fac Gar Fac Distress Signals 6 | . 1 . . . 4 . 1 . . Communications Jammed . | . . . . . . . . . . Distress Signals . | . . . . . . . . . . Times Spotted 125 | . 14 8 . 6 25 32 5 19 16 Peak Tracking Total 6 | . 5 2 . 2 4 6 4 3 3 Tactical Retreats 8 | . 2 . . . 2 2 . 1 1 Traps | -11 -10 -10 -10 -9 -8 -8 -7 -7 -7 ------- Run | Scr Mat Min Exi Min Mat Gar Fac Gar Fac Traps Triggered 10 | . . . . . 2 4 1 1 2 Indirectly . | . . . . . . . . . . Trap Hack Attempts 39 | . . . . . 14 . . 25 . Triggered . | . . . . . . . . . . Disarmed 2 | . . . . . 1 . . 1 . Reprogrammed 6 | . . . . . 2 . . 4 . Reused 2 | . . . . . 2 . . . . Traps Extracted . | . . . . . . . . . . Installed . | . . . . . . . . . . Triggered 2 | . . . . . 2 . . . . Machines | -11 -10 -10 -10 -9 -8 -8 -7 -7 -7 ---------- Run | Scr Mat Min Exi Min Mat Gar Fac Gar Fac Machines Disabled 8 | . 2 . . . . 3 1 2 . Max in Single Turn 2 | . 2 . . . . 1 . 1 . Garrison Relay 5 | . . . . . . 3 . 2 . Machines Sabotaged . | . . . . . . . . . . Garrisons Compromised . | . . . . . . . . . . Overloaded Fab Kills . | . . . . . . . . . . Hacking | -11 -10 -10 -10 -9 -8 -8 -7 -7 -7 --------- Run | Scr Mat Min Exi Min Mat Gar Fac Gar Fac Machines Accessed 27 | . 8 2 . . 9 . 2 . 6 Terminals 20 | . 8 1 . . 6 . 1 . 4 Fabricators 1 | . . . . . . . . . 1 Repair Stations 1 | . . . . . . . . . 1 Recycling Units . | . . . . . . . . . . Scanalyzers 2 | . . . . . 2 . . . . Garrison Access 2 | . . . . . 1 . 1 . . Total Hacks 82 | . 26 4 . . 27 . 3 . 22 Successful 59 | . 19 4 . . 20 . 2 . 14 Failed 23 | . 7 . . . 7 . 1 . 8 Catastrophic 1 | . . . . . . . . . 1 Database Lockouts . | . . . . . . . . . . Manual 45 | . 16 2 1 . 17 . . . 9 Terminals 65 | . 26 3 . . 21 . 2 . 13 Fabricators 3 | . . . . . . . . . 3 Repair Stations 6 | . . . . . . . . . 6 Recycling Units . | . . . . . . . . . . Scanalyzers 5 | . . . . . 5 . . . . Garrison Access 2 | . . . . . 1 . 1 . . Terminal Hacks 25 | . 11 3 . . 5 . 1 . 5 Part Schematic 4 | . 2 . . . 2 . . . . Robot Schematic 4 | . 2 . . . . . . . 2 Open Door 1 | . . 1 . . . . . . . Open DSF 1 | . . . . . . . 1 . . Branch Access Points 1 | . 1 . . . . . . . . Terminal Index 2 | . . . . . 1 . . . 1 Locate Traps 4 | . 3 . . . 1 . . . . Dispatch Records 1 | . . 1 . . . . . . . Recall Investigation 1 | . . . . . . . . . 1 Recall Extermination 1 | . . . . . . . . . 1 Hauler Manifests 2 | . 2 . . . . . . . . Zone Layout 3 | . 1 1 . . 1 . . . . Fabricator Hacks 1 | . . . . . . . . . 1 Load Schematic 1 | . . . . . . . . . 1 Repair Station Hacks 4 | . . . . . . . . . 4 Scan Component 2 | . . . . . . . . . 2 Repair 2 | . . . . . . . . . 2 Recycling Unit Hacks . | . . . . . . . . . . Scanalyzer 4 | . . . . . 4 . . . . Insert Component 2 | . . . . . 2 . . . . Analyze 2 | . . . . . 2 . . . . Garrison Access Hacks 2 | . . . . . 1 . 1 . . Unlock Access 2 | . . . . . 1 . 1 . . Unauthorized Hacks 23 | . 8 1 . . 10 . . . 4 Terminals 21 | . 8 1 . . 9 . . . 3 Track 2 | . . 1 . . 1 . . . . Assimilate 2 | . . . . . 1 . . . 1 Botnet 15 | . 8 . . . 5 . . . 2 Operators 2 | . . . . . 2 . . . . Fabricators . | . . . . . . . . . . Repair Stations 1 | . . . . . . . . . 1 Mechanics 1 | . . . . . . . . . 1 Recycling Units . | . . . . . . . . . . Scanalyzers 1 | . . . . . 1 . . . . Extract 1 | . . . . . 1 . . . . Garrison Access . | . . . . . . . . . . Data Cores Recovered . | . . . . . . . . . . Used . | . . . . . . . . . . Hacking Detections 23 | . 8 1 . . 6 . 2 . 6 Full Trace Events 5 | . 2 . . . 2 . . . 1 Feedback Events . | . . . . . . . . . . Feedback Blocked . | . . . . . . . . . . Robot Schematics Acquired 4 | . 2 . . . . . . . 2 Robots Built . | . . . . . . . . . . Authchips . | . . . . . . . . . . Time . | . . . . . . . . . . Total Robot Build Rating . | . . . . . . . . . . Part Schematics Acquired 6 | . 2 . . . 4 . . . . Parts Built . | . . . . . . . . . . Authchips . | . . . . . . . . . . Time . | . . . . . . . . . . Total Part Build Rating . | . . . . . . . . . . Parts Repaired 2 | . . . . . . . . . 2 Time 32 | . . . . . . . . . 32 Parts Recycled . | . . . . . . . . . . Recycled Matter . | . . . . . . . . . . Retrieved Matter . | . . . . . . . . . . Retrieved Components . | . . . . . . . . . . Parts Scanalyzed 2 | . . . . . 2 . . . . Part Schematics Acquired 1 | . . . . . 1 . . . . Parts Damaged . | . . . . . . . . . . Bothacking | -11 -10 -10 -10 -9 -8 -8 -7 -7 -7 ------------ Run | Scr Mat Min Exi Min Mat Gar Fac Gar Fac Used RIF Installer 2 | . . . . . . 1 . 1 . Zone Cloak 1 | . . . . . . . . 1 . Robots Hacked 15 | . . . . . . 5 1 5 4 Non-combat 4 | . . . . . . . 1 . 3 Combat 11 | . . . . . . 5 . 5 1 Robot Hacks Applied 15 | . . . . . . 5 1 5 4 no_distress 1 | . . . . . . . 1 . . streamctrl_high 1 | . . . . . . 1 . . . formatsys_low 3 | . . . . . . . . . 3 formatsys_high 10 | . . . . . . 4 . 5 1 Relay Couplers Released 19 | . . . . . . 13 . 6 . Machine Destruction 19 | . . . . . . 13 . 6 . Attached 7 | . . . . . . 3 . 4 . Fabnet Peak Effective % . | . . . . . . . . . . Robots Rewired . | . . . . . . . . . . Allies Hacked . | . . . . . . . . . . Hacks Repelled . | . . . . . . . . . . Allies | -11 -10 -10 -10 -9 -8 -8 -7 -7 -7 -------- Run | Scr Mat Min Exi Min Mat Gar Fac Gar Fac Total Allies 18 | . . . . . 1 5 3 5 4 Largest Group 9 | . . . . . 1 5 7 6 9 Highest-Rated Group 178 | . . . . . 10 78 155 156 178 Highest-Rated Ally 32 | . . . . . 10 16 31 32 32 Total Orders 28 | . . . . . 1 3 2 3 19 STAY 19 | . . . . . . 2 1 2 14 FOLLOW 6 | . . . . . . 1 1 1 3 TUNNEL 1 | . . . . . . . . . 1 DROP 1 | . . . . . . . . . 1 EXPLORE 1 | . . . . . 1 . . . . Ally Attacks 144 | . . . . . . 5 42 79 18 Total Damage 1817 | . . . . . . 60 429 937 391 Kills 23 | . . . . . . 1 8 11 3 Allies Corrupted . | . . . . . . . . . . Allies Melted . | . . . . . . . . . . Intel | -11 -10 -10 -10 -9 -8 -8 -7 -7 -7 ------- Run | Scr Mat Min Exi Min Mat Gar Fac Gar Fac Robot Analysis Total . | . . . . . . . . . . Derelict Logs Recovered 1 | . . 1 . . . . . . . Drone Launches 1 | . . . . . 1 . . . . Drone Recoveries . | . . . . . . . . . . Exploration | -11 -10 -10 -10 -9 -8 -8 -7 -7 -7 ------------- Run | Scr Mat Min Exi Min Mat Gar Fac Gar Fac Turns Passed 10410 | 113 1346 1592 556 250 1482 1543 370 871 2287 Spaces Moved 7326 | 58 842 759 452 101 804 1343 331 754 1882 Core 9 | 9 . . . . . . . . . Treads . | . . . . . . . . . . Legs 7317 | 49 842 759 452 101 804 1343 331 754 1882 Wheels . | . . . . . . . . . . Hover . | . . . . . . . . . . Flight . | . . . . . . . . . . Fastest Speed 50 | 50 120 190 90 90 90 90 90 90 90 Average Speed 108 | 116 143 190 122 90 90 90 90 90 90 Slowest Speed 200 | 200 190 190 190 90 90 90 90 90 90 Overloaded Moves . | . . . . . . . . . . Propulsion Burnouts . | . . . . . . . . . . Robots Hopped . | . . . . . . . . . . Cave-ins Triggered . | . . . . . . . . . . Exploration Rate (%) 57 | 4 98 99 91 33 61 81 7 68 32 Regions Visited 9 Branch Regions 3 Pre-discovered Areas . | . . . . . . . . . . Known Exits Taken 7 | 1 1 1 1 1 1 . 1 . . Unknown Exits Taken . | . . . . . . . . . . Scrap Searched 1 | . . 1 . . . . . . . Spaces Dug 20 | . . 2 . . 2 . . . 16 Terrain Destroyed 101 | . 23 2 . 49 2 9 . . 16 Melee 20 | . . 2 . . 2 . . . 16 Projectile . | . . . . . . . . . . AOE 81 | . 23 . . 49 . 9 . . . Terrain Rammed . | . . . . . . . . . . Walls Destroyed . | . . . . . . . . . . Machines Disabled . | . . . . . . . . . . Actions | -11 -10 -10 -10 -9 -8 -8 -7 -7 -7 --------- Run | Scr Mat Min Exi Min Mat Gar Fac Gar Fac Total 9248 | 81 905 833 455 238 1445 1566 392 920 2413 Wait 1335 | . 4 12 . 120 507 88 49 102 453 Move 7315 | 57 841 758 451 100 803 1341 330 752 1882 Hop . | . . . . . . . . . . Pick Up 52 | 5 10 7 . . 15 8 1 1 5 Fast Attach 20 | 7 . . 2 . 4 1 2 2 2 Attach 14 | . 1 . . . 8 3 . . 2 Detach 7 | . . . . . 2 2 . 1 2 Swap 64 | 1 3 10 . 3 14 17 . 6 10 Drop 50 | . 6 7 2 . 17 7 1 1 9 Fire 239 | 11 40 36 . 15 58 49 8 14 8 Melee 77 | . . 2 . . 3 27 1 8 36 Ram . | . . . . . . . . . . Kick 1 | . . 1 . . . . . . . Crush . | . . . . . . . . . . Escape Stasis 22 | . . . . . . 19 . 3 . Rewire 13 | . . . . . . 4 . 5 4 Trap 39 | . . . . . 14 . . 25 . Miscellaneous . | . . . . . . . . . . Route ------- -11/Scrapyard -10/Materials (discovered 4 exits: *Mat x3 / *Min) -10/Mines (discovered 3 exits: *Mat x2 / *Exi) -10/Exiles (discovered 2 exits: *Min x2) -9/Mines -8/Materials (discovered 3 exits: *Fac x2 / Gar) -8/Garrison (discovered 3 exits: *Fac x3) -7/Factory -7/Garrison (discovered 3 exits: *Fac x3) -7/Factory (discovered 2 exits: *Fac / *Sto) History --------- Turn | Location | Event 9 | -11/Scrapyard | Identified exit to Materials 9 | -11/Scrapyard | Discovered exit to Materials (range 16) 114 | -11/Scrapyard | Entered Materials 114 | -10/Materials | Evolved 1 slot: Utility x1 306 | -10/Materials | Build established: Hacker-Mutant 528 | -10/Materials | Identified exit to Materials 528 | -10/Materials | Discovered exit to Materials (range 12) 794 | -10/Materials | Discovered exit to Materials (range 5) 901 | -10/Materials | Discovered exit to Materials (range 16) 1205 | -10/Materials | Identified exit to Mines 1460 | -10/Materials | Entered Mines 1462 | -10/Mines | Met a Derelict bent on vengeance 1503 | -10/Mines | Found the Drone Emporium 1514 | -10/Mines | Found Prototype Device 1771 | -10/Mines | Discovered exit to Materials (range 9) 2164 | -10/Mines | Learned 2 Materials zone layouts 2493 | -10/Mines | Discovered exit to Materials (range 6) 3039 | -10/Mines | Identified exit to Exiles 3039 | -10/Mines | Discovered exit to Exiles (range 8) 3043 | -10/Mines | Deemed a non-threat by the Exiles lab entrance 3052 | -10/Mines | Entered Exiles 3083 | -10/Exiles | Identified exit to Mines 3083 | -10/Exiles | Discovered exit to Mines (range 14) 3136 | -10/Exiles | Met 8R-AWN 3165 | -10/Exiles | Met EX-HEX 3225 | -10/Exiles | Met EX-BIN 3252 | -10/Exiles | Aligned with FarCom system 3254 | -10/Exiles | Given EX-Vault access code 3317 | -10/Exiles | Opened EX-Vault 3329 | -10/Exiles | Found Prototype Leg 3329 | -10/Exiles | Identified Potential Leg 3332 | -10/Exiles | Found Potential Leg 3353 | -10/Exiles | Warned to stay clear of 0b10 Research branches 3415 | -10/Exiles | Met EX-DEC 3430 | -10/Exiles | Visited The Gauntlet 3594 | -10/Exiles | Discovered exit to Mines (range 11) 3608 | -10/Exiles | Left Exiles lab with Potential Leg 3608 | -10/Exiles | Entered Mines 3611 | -9/Mines | Assembled infested the area 3634 | -9/Mines | A weapon hastily lodged in a ceiling crevice suddenly fell to the ground 3804 | -9/Mines | Core integrity fell below 50% 3834 | -9/Mines | Identified exit to Materials 3834 | -9/Mines | Discovered exit to Materials (range 15) 3858 | -9/Mines | Entered Materials 3858 | -8/Materials | Evolved 4 slots: Utility x3, Weapon x1 3859 | -8/Materials | Identified exit to Factory 4159 | -8/Materials | Build established: Hacker-Skirmisher 4620 | -8/Materials | Identified Decoy Drone Bay 5275 | -8/Materials | Discovered exit to Factory (range 7) 5339 | -8/Materials | Identified exit to Garrison 5340 | -8/Materials | Entered Garrison 5340 | -8/Garrison | Accompanied by 1 ally 5464 | -8/Garrison | Triggered checkpoint 5516 | -8/Garrison | Garrison Relay disabled 5616 | -8/Garrison | Triggered checkpoint 5702 | -8/Garrison | Triggered checkpoint 6056 | -8/Garrison | Discovered exit to Factory (range 15) 6086 | -8/Garrison | Triggered checkpoint 6108 | -8/Garrison | Garrison Relay disabled 6210 | -8/Garrison | Triggered checkpoint 6241 | -8/Garrison | Discovered exit to Factory (range 9) 6328 | -8/Garrison | Triggered checkpoint 6356 | -8/Garrison | Discovered exit to Factory (range 15) 6360 | -8/Garrison | Triggered checkpoint 6366 | -8/Garrison | Triggered checkpoint 6395 | -8/Garrison | Installed Relay Interface Framework 6552 | -8/Garrison | Triggered checkpoint 6571 | -8/Garrison | Garrison Relay disabled 6620 | -8/Garrison | Triggered checkpoint 6883 | -8/Garrison | Entered Factory 6883 | -7/Factory | Accompanied by 4 allies 6883 | -7/Factory | Evolved 2 slots: Utility x2 7022 | -7/Factory | Allied Derelicts emerged from ambush trap array 7053 | -7/Factory | Build established: Bothacker-Mutant 7216 | -7/Factory | Identified exit to Garrison 7233 | -7/Factory | Garrison activated, responded to threat 7253 | -7/Factory | Entered Garrison 7253 | -7/Garrison | Accompanied by 6 allies 7296 | -7/Garrison | Triggered checkpoint 7302 | -7/Garrison | Triggered checkpoint 7324 | -7/Garrison | Triggered checkpoint 7328 | -7/Garrison | Triggered checkpoint 7413 | -7/Garrison | Identified exit to Factory 7413 | -7/Garrison | Discovered exit to Factory (range 9) 7537 | -7/Garrison | Discovered exit to Factory (range 13) 7554 | -7/Garrison | Expanded RIF knowledge: Zone Cloak 7598 | -7/Garrison | Triggered checkpoint 7619 | -7/Garrison | Garrison Relay disabled 7776 | -7/Garrison | Discovered exit to Factory (range 14) 7814 | -7/Garrison | Build established: Bothacker-Assassin 7868 | -7/Garrison | Triggered checkpoint 7895 | -7/Garrison | Garrison Relay disabled 8124 | -7/Garrison | Entered Factory 8124 | -7/Factory | Accompanied by 5 allies 9154 | -7/Factory | Build established: Commander-Assassin 9316 | -7/Factory | Identified exit to Factory 9316 | -7/Factory | Discovered exit to Factory (range 13) 9470 | -7/Factory | Identified exit to Storage 9470 | -7/Factory | Discovered exit to Storage (range 14) 9670 | -7/Factory | Repaired Hrd. Medium Armor Plating 9684 | -7/Factory | Repaired Structural Scanner 10411 | -7/Factory | Self-destructed Last Messages --------------- 10310_ Guardian 4b heat spikes uncontrollably. 10310_ Guardian 4b destroyed. 10311_ K-01 Serf cleans the Subcomponent Replicator. 10313_ G-47 Trooper destroyed. 10316_ K-01 Serf cleans the Subcomponent Replicator. 10317_ G-47 Trooper destroyed. 10318_ G-47 Trooper suffers critical hit (Burn). 10320_ Trooper 4a heat spikes uncontrollably. 10320_ Trooper 4a destroyed. 10320_ G-47 Trooper destroyed. 10321_ K-01 Serf collects debris. 10323_ Sneak attack on K-01 Serf. 10323_ K-01 Serf destroyed. 10331_ K-01 Serf collects debris. 10357_ Connecting with Terminal... >>Recall(Investigation) Establishing remote squad link... Recalled investigation squad U2Z67CWDQ9. 10399_ ALERT: Rogue bot located, Programmers report to Factory Zone 3G. 10403_ K-01 Serf cleans the Terminal. Map ----- +----------------------------------------------------+ | ??????? ??" "?" ########## ###### ##### | | ????????? ########## """"""""" ###### ##### | | ???????##?################ ###### # | | ??#??###??################ """"""""" ###### # | | ???##?####################! ###### + | | ??#?###?######?########### %""""""""" ###### # | | ?????##################### ###### # | | #?##?##################### ###### # | | ?#############################+#+########### # | | ?############################# | | #### # # | | #?## + "" + | | #### # ] "" # | | #### """ # T" # | | #### """ # """ """ "" # ############### | | #### """ """# """ """ # # """ ## | | ??## """# """ """ # # """""" "T" ## | | #?## """ """# # # """""" " " ## | | #### """ F"# """ """ # # """""" ## | | #### """ """# """ """ + + """""" ## | | #### "" # """ """ # # ## | | #### # # # """""" [ ## | | ##########+################### # """""" ## | | ## u k k # """""" ## | | ## # """""" ## | | ## @""""" ""# ## | | ## r """"" ""# ## | | ## k """ T"############### | | ## ###+#######+#### k""############### | | ## # ### """"" ""############### | | # ###% """"" ###?########### | | # %### """ ############### | | + =%+% %[ ############### | | # =###%%=""""" ######## | | # =###[= """"" #####?## | | # ### """ ######## | | # ### k ######## | | # ### """"" + | | # ### """"" # | | + ### """ + | | # ### ! # | | ###+###+######## # | | ### ### ######## ###########+### | | ## = ## ######## # * ## | | ## ######## # ## | | ######### ## + "" "" ######### | | ############## # ""S"" ######### | | ####### """ # # ] ! """" ######### | | ####### """ + ###################### | | ####### """ # ##########+######################## | +----------------------------------------------------+ Best States ------------- Heat Dissipation 53 Energy Generation 14 Energy Capacity 265 Matter Stores 300 Matter Capacity 300 Sight Range 16 Terrain Scan Range 16 Terrain Scan Density 310 Armor Coverage 225 Resistance: KI 35 Resistance: TH 35 Resistance: EX 35 Resistance: EM 35 Resistance: I 35 Resistance: S 35 Resistance: P 35 Evasion (%) 57 Targeting Accuracy 5 Particle Charging 15 Offensive Hacking 20 Defensive Hacking 10 Relay Coupler Types 2 Relay Coupler Value 76 Item Schematics ----------------- Structural Scanner | -10/Materials | Hacked Lrg. Storage Unit | -10/Materials | Hacked Imp. Datajack | -8/Materials | Scanalyzed Imp. Terrain Scan Processor | -8/Materials | Hacked Trap Extractor | -8/Materials | Hacked Adv. Treads | -8/Materials | Extracted Robot Schematics ------------------ T-07 Excavator | -10/Materials | Hacked A-02 Transporter | -10/Materials | Hacked I-36 Angel | -7/Factory | Hacked M-28 Smith | -7/Factory | Hacked Fabricated ------------ Nothing Alien Tech Used ----------------- None Achievements -------------- Assimilation Complete Challenges ------------ None Game ------ Seed DamperExperimentalBoregun Manual? 0 Play Time 02:02:27 Cumulative 31.6 hours Start 2022.05.08 @ 20:28:48 End 2022.05.09 @ 17:15:14 Sessions 4 Manual Loads 0 Difficulty Explorer Special Mode None Game No. 8 Rogue 7 Adventurer 0 Explorer 1 Win Type - Total 0 Types 0/0/0/0/0/0/0/0/0 Lore% 16 Gallery% 28 Achievement% 32 Wizard Run 0 Options --------- ASCII 0 Keyboard 0 Movement Numpad Keybinds 0 Fullscreen 1 Font 18/SmallcapsGlow Map View 76x50 Tactical HUD 1 Map Filters NONE Filters NONE Steam 1 RUN: fc455ca7-2081-4037-b43f-eda9b6ffeb5f